bitfinex-derivatives/quotes_BNBF0:USTF0_20250316
["timestamp","ask_amount","ask_price","bid_price","bid_amount"]
[1742115051888,2.50617599,608.65,607.49,1.50162192]
[1742115052090,2.50617599,608.65,607.5,1.758]
[1742115052791,2.50617599,608.81,607.5,1.758]
[1742115053990,2.50617599,608.83,607.5,1.758]
[1742115056191,2.50617599,608.89,607.5,1.758]
[1742115056389,0.32847194,608.88,607.5,1.758]
[1742115057088,1.84978315,608.88,607.5,1.758]
[1742115058193,2.50617599,608.83,607.5,1.758]
[1742115060596,2.50617599,608.85,607.5,1.758]
[1742115060796,0.32849352,608.84,607.5,1.758]
[1742115061896,1.84980473,608.84,607.5,1.758]
[1742115062297,0.32849352,608.84,607.5,1.758]
[1742115063193,2.50617599,608.67,607.5,1.758]
[1742115065600,1.52130599,608.83,607.5,1.758]
[1742115065808,0.32850431,608.82,607.5,1.758]
[1742115067597,0.32850431,608.82,607.51,1.442]
[1742115069999,2.50617599,608.69,607.51,1.442]
[1742115070201,0.32857987,608.68,607.51,1.442]
[1742115070601,1.84988586,608.68,607.51,1.442]
[1742115072008,0.32857987,608.68,607.51,1.442]
[1742115073013,0.32857987,608.68,607.52,1.869]
[1742115075106,1.85207597,608.68,607.52,1.869]
[1742115075513,0.32857987,608.68,607.52,1.869]
[1742115075814,0.32857987,608.68,607.52,3.727]
[1742115077209,2.50617599,608.66,607.52,3.727]
[1742115077414,0.32859607,608.65,607.52,3.727]
[1742115078615,1.85236705,608.65,607.52,3.727]
[1742115079516,2.50617599,608.56,607.52,3.727]
[1742115081517,2.50617599,608.6,607.52,3.727]
[1742115083616,2.50617599,608.61,607.52,3.727]
[1742115086018,2.50617599,608.5,607.52,3.727]
[1742115088115,2.50617599,608.27,607.52,3.727]
[1742115089921,2.50617599,608.19,607.52,3.727]
[1742115091723,2.50617599,608.47,607.52,3.727]
[1742115093524,2.50617599,608.51,607.52,3.727]
[1742115096123,0.32859607,608.65,607.52,3.727]
[1742115104837,2.50617599,608.61,607.52,3.727]
[1742115106936,2.50617599,608.45,607.52,3.727]
[1742115112045,2.50617599,608.63,607.52,3.727]
[1742115113846,2.50617599,608.63,607.52,4.941]
[1742115114149,0.32859607,608.65,607.52,4.941]
[1742115116553,2.50617599,608.94,607.54,0.32919643]
[1742115116746,2.50617599,608.94,607.55,0.36047136]
[1742115116953,2.50617599,608.94,607.57,0.32918017]
[1742115117254,2.50617599,608.94,607.58,0.36047136]
[1742115117451,2.50617599,608.94,607.59,0.6896407]
[1742115117653,2.50617599,608.94,607.6,0.68963528]
[1742115117854,2.50617599,608.94,607.55,1.17669152]
[1742115117855,2.50617599,609.11,607.61,0.68962986]
[1742115118156,2.8345239,609.11,607.62,0.68962444]
[1742115118354,2.8345239,609.11,607.63,0.68961903]
[1742115118555,2.8345239,609.11,607.64,0.32914225]
[1742115118954,2.8345239,609.11,607.65,1.17669152]
[1742115119156,2.8345239,609.11,607.66,0.32913142]
[1742115119360,2.8345239,609.11,607.67,1.17669152]
[1742115119657,2.8345239,609.11,607.68,0.32912058]
[1742115119856,0.32834791,609.11,607.68,0.32912058]
[1742115120154,0.32834791,609.11,607.69,1.17669152]
[1742115120353,0.32834791,609.11,607.7,0.32910975]
[1742115135671,2.8345239,609.11,607.7,0.32910975]
[1742115135972,1.51948877,609.1,607.7,0.32910975]
[1742115136265,0.32835869,609.09,607.7,0.32910975]
[1742115137365,2.50617599,609.07,607.7,0.32910975]
[1742115137570,0.32837487,609.06,607.7,0.32910975]
[1742115137970,1.84786364,609.06,607.7,0.32910975]
[1742115139969,4.35403963,609.06,607.7,0.32910975]
[1742115140167,1.51948877,609.05,607.7,0.32910975]
[1742115140371,0.32838565,609.04,607.7,0.32910975]
[1742115142975,1.84787442,609.04,607.7,0.32910975]
[1742115144275,2.50617599,609.0,607.7,0.32910975]
[1742115144473,0.32841261,608.99,607.71,1.26]
[1742115144674,1.84790138,608.99,607.71,1.26]
[1742115145274,0.32841801,608.98,607.71,1.26]
[1742115146077,2.50617599,608.82,607.71,1.26]
[1742115148476,2.50617599,608.93,607.71,1.26]
[1742115148679,0.32845037,608.92,607.71,1.26]
[1742115149080,1.84793914,608.92,607.71,1.26]
[1742115150583,2.50617599,608.89,607.71,1.26]
[1742115150782,0.32847194,608.88,607.71,1.26]
[1742115151483,1.84796071,608.88,607.71,1.26]
[1742115152283,2.50617599,608.76,607.71,1.26]
[1742115154076,2.50617599,608.82,607.71,1.26]
[1742115156283,1.51843476,608.87,607.71,1.26]
[1742115156583,0.32847194,608.88,607.71,1.26]
[1742115159585,1.8469067,608.88,607.71,1.26]
[1742115160582,2.50617599,608.84,607.7,0.32910975]
[1742115163089,2.50617599,608.66,607.7,0.32910975]
[1742115163289,2.50617599,608.66,607.71,1.269]
[1742115163885,2.50617599,608.66,607.72,1.445]
[1742115165392,2.50617599,608.83,607.72,1.445]
[1742115167793,0.32847194,608.88,607.72,1.445]
[1742115176999,0.32847194,608.88,607.73,1.835]
[1742115179598,2.50617599,608.75,607.73,1.835]
[1742115181998,1.52124492,608.87,607.73,1.835]
[1742115181999,2.50617599,608.69,607.73,1.835]
[1742115184508,2.50617599,608.69,607.74,3.577]
[1742115185305,2.50617599,608.82,607.74,3.577]
[1742115186602,2.8346803,608.82,607.74,3.577]
[1742115186805,1.84975463,608.81,607.74,3.577]
[1742115187004,2.50617599,608.71,607.74,3.577]
[1742115189311,2.50617599,608.77,607.74,3.577]
[1742115191318,1.52124492,608.79,607.74,3.577]
[1742115191518,0.3285259,608.78,607.74,3.577]
[1742115194023,2.50617599,608.75,607.74,3.577]
[1742115196522,2.50617599,608.75,607.74,1.651]
[1742115198024,2.50617599,608.43,607.74,1.651]
[1742115199026,2.50617599,608.43,607.75,1.267]
[1742115199821,2.50617599,608.54,607.75,1.267]
[1742115201819,2.50617599,608.69,607.75,1.267]
[1742115204329,2.50617599,608.68,607.75,1.267]
[1742115206230,2.50617599,608.7,607.75,1.267]
[1742115207632,2.50617599,608.7,607.76,1.813]
[1742115210332,1.52352772,608.77,607.76,1.813]
[1742115210333,2.50617599,608.6,607.76,1.813]
[1742115212629,2.50617599,608.42,607.76,1.813]
[1742115214935,2.50617599,608.36,607.76,1.813]
[1742115217138,2.50617599,608.4,607.76,1.813]
[1742115220233,2.50617599,608.48,607.76,1.813]
[1742115221740,2.50617599,608.44,607.76,1.813]
[1742115223846,2.50617599,608.68,607.76,1.813]
[1742115226046,2.50617599,608.68,607.77,1.715]
[1742115226245,0.3285259,608.78,607.77,1.715]
[1742115227842,1.85203304,608.78,607.77,1.715]
[1742115228547,0.3285259,608.78,607.77,1.715]
[1742115230847,2.50617599,608.66,607.77,1.715]
[1742115232649,2.50617599,608.73,607.77,1.715]
[1742115234547,1.52358477,608.77,607.77,1.715]
[1742115234748,1.85211067,608.78,607.77,3.524]
[1742115236149,2.50617599,608.75,607.77,3.524]
[1742115238550,1.52358477,608.77,607.77,3.524]
[1742115238748,1.85211067,608.78,607.77,3.524]
[1742115241354,2.50617599,608.72,607.77,3.524]
[1742115244453,1.52415972,608.77,607.77,3.524]
[1742115244649,0.3285259,608.78,607.77,3.524]
[1742115246756,1.85268562,608.78,607.77,3.524]
[1742115248559,4.35886161,608.78,607.77,3.524]
[1742115248759,1.52415972,608.77,607.77,3.524]
[1742115248960,0.32853669,608.76,607.77,3.524]
[1742115251055,2.50617599,608.69,607.77,3.524]
[1742115251258,0.32857987,608.68,607.77,3.524]
[1742115251458,1.85273959,608.68,607.77,3.524]
[1742115253563,0.32857987,608.68,607.77,3.524]
[1742115268371,2.50617599,608.62,607.77,3.524]
[1742115268574,0.32861766,608.61,607.77,3.524]
[1742115268973,1.85081323,608.61,607.77,3.524]
[1742115269573,1.85081323,608.61,607.77,5.248]
[1742115270274,2.50617599,608.54,607.77,5.248]
[1742115272380,2.50617599,608.38,607.77,5.248]
[1742115274278,2.50617599,608.33,607.77,5.248]
[1742115276574,2.50617599,608.35,607.77,5.248]
[1742115279583,2.50617599,608.33,607.77,5.248]
[1742115282279,2.50617599,608.29,607.77,5.248]
[1742115282681,2.50617599,608.29,607.77,3.533]
[1742115284082,2.50617599,608.14,607.77,3.533]
[1742115284484,2.50617599,608.14,607.77,1.724]
[1742115286688,2.50617599,608.12,607.77,1.724]
[1742115288787,2.50617599,608.37,607.77,1.724]
[1742115290987,2.50617599,608.52,607.77,1.724]
[1742115293285,2.50617599,608.55,607.77,1.724]
[1742115295597,2.50617599,608.57,607.77,1.724]
[1742115298296,2.50617599,608.41,607.77,1.724]
[1742115300300,2.50617599,608.32,607.77,1.724]
[1742115302897,2.50617599,608.26,607.77,1.724]
[1742115304906,2.50617599,608.41,607.77,1.724]
[1742115307006,2.50617599,608.38,607.77,1.724]
[1742115309211,2.50617599,608.38,607.77,2.929]
[1742115309908,2.50617599,608.46,607.77,2.929]
[1742115312213,2.50617599,608.51,607.77,2.929]
[1742115314209,2.50617599,608.58,607.77,2.929]
[1742115314414,0.32863926,608.57,607.77,2.929]
[1742115317217,0.32863926,608.57,607.77,4.561]
[1742115329528,1.85502465,608.57,607.77,4.561]
[1742115331125,2.50617599,608.52,607.77,4.561]
[1742115335537,2.50617599,608.46,607.77,4.561]
[1742115337437,2.50617599,608.46,607.77,1.2684239]
[1742115337637,2.50617599,608.46,606.95,0.28633727]
[1742115337638,2.50617599,608.53,606.95,0.28633727]
[1742115337834,2.50617599,608.53,606.97,0.32950557]
[1742115338638,2.50617599,608.53,606.98,1.17988135]
[1742115338934,2.50617599,608.53,607.0,0.32948929]
[1742115340040,2.50617599,608.44,607.01,1.17988135]
[1742115340241,2.50617599,608.44,607.03,0.329473]
[1742115341035,2.50617599,608.44,607.04,1.17988135]
[1742115341241,2.50617599,608.44,607.03,0.329473]
[1742115342441,2.50617599,608.4,607.03,0.329473]
[1742115343543,2.50617599,608.4,607.04,0.36105063]
[1742115343736,2.50617599,608.4,607.05,0.69051278]
[1742115343939,2.50617599,608.4,607.06,0.69050735]
[1742115344135,2.50617599,608.4,607.07,0.69050192]
[1742115344338,2.50617599,608.4,607.08,0.6904965]
[1742115344540,2.50617599,608.25,607.09,0.69048245]
[1742115344741,2.50617599,608.25,607.1,0.69047702]
[1742115344943,2.50617599,608.25,607.11,0.6904716]
[1742115345138,2.50617599,608.25,607.12,0.69046617]
[1742115345340,2.50617599,608.25,607.12,3.47485849]
[1742115345538,2.50617599,608.25,607.12,2.26507606]
[1742115345738,2.50617599,608.25,607.12,0.32942416]
[1742115346036,2.50617599,608.23,607.12,0.32942416]
[1742115346844,2.50617599,608.23,607.13,1.21018579]
[1742115347439,2.50617599,608.23,607.12,0.32942416]
[1742115348944,0.32863926,608.57,607.12,0.32942416]
[1742115366860,0.32863926,608.57,607.13,1.449]
[1742115369270,0.32863926,608.57,607.14,1.602]
[1742115373267,2.50617599,608.4,607.14,1.602]
[1742115373471,0.3287365,608.39,607.14,1.602]
[1742115378072,0.3287365,608.39,607.15,1.587]
[1742115390879,0.3287365,608.39,607.15,2.795]
[1742115394192,2.50617599,608.19,607.15,2.795]
[1742115396696,1.51957468,608.38,607.15,2.795]
[1742115396697,2.50617599,608.21,607.15,2.795]
[1742115399296,2.50617599,608.03,607.15,2.795]
[1742115401899,2.50617599,608.01,607.15,2.795]
[1742115404501,2.50617599,608.02,607.15,2.795]
[1742115406301,2.50617599,607.99,607.15,2.795]
[1742115409203,2.50617599,608.01,607.15,2.795]
[1742115411605,2.50617599,608.04,607.15,2.795]
[1742115415406,2.50617599,608.01,607.15,2.795]
[1742115417609,2.50617599,607.9,607.15,2.795]
[1742115420209,2.50617599,607.78,607.15,2.795]
[1742115420412,2.50617599,607.78,607.15,4.295]
[1742115420612,2.50617599,607.78,607.15,3.087]
[1742115423913,2.50617599,607.74,607.15,3.087]
[1742115426323,2.50617599,607.82,607.15,3.087]
[1742115429721,2.50617599,608.01,607.15,3.087]
[1742115432023,2.50617599,608.08,607.16,1.19531387]
[1742115432524,2.50617599,608.08,607.17,1.19531387]
[1742115433023,2.50617599,608.08,607.15,3.087]
[1742115434125,2.50617599,608.08,607.16,1.19521035]
[1742115434424,2.50617599,608.56,607.16,1.19521035]
[1742115434619,1.52472862,608.55,607.16,1.19521035]
[1742115434827,1.52472862,608.55,607.15,3.087]
[1742115435223,2.50617599,608.56,607.15,3.087]
[1742115436724,2.50617599,608.56,607.16,1.19501771]
[1742115436926,2.50617599,608.58,607.16,1.19501771]
[1742115437124,1.52451072,608.57,607.16,1.19501771]
[1742115437325,2.50617599,608.58,607.15,1.5]
[1742115438825,2.50617599,608.58,607.16,1.19498449]
[1742115439018,1.52456998,608.57,607.16,1.19498449]
[1742115439220,1.52456998,608.61,607.17,1.19498449]
[1742115439821,1.52456998,608.61,607.17,1.52438152]
[1742115440026,1.52456998,608.61,607.18,0.69080285]
[1742115440224,1.52456998,608.61,607.19,0.32938618]
[1742115441021,1.52456998,608.61,607.2,1.19498449]
[1742115441226,1.52456998,608.61,607.17,1.44]
[1742115441227,2.50617599,608.37,607.21,1.52435982]
[1742115441528,2.50617599,608.37,607.22,0.32936991]
[1742115443327,2.50617599,608.33,607.22,0.32936991]
[1742115445330,2.50617599,608.37,607.22,0.32936991]
[1742115447625,2.50617599,608.82,607.22,0.32936991]
[1742115447626,2.50617599,608.45,607.22,0.32936991]
[1742115448331,1.52276143,608.44,607.22,0.32936991]
[1742115449126,1.52276143,608.44,607.23,1.608]
[1742115449326,1.52276143,608.44,607.24,0.32935906]
[1742115449830,1.52276143,608.44,607.25,1.673]
[1742115450429,1.52276143,608.56,607.25,1.673]
[1742115452334,2.50617599,608.51,607.25,1.673]
[1742115452535,1.52276143,608.5,607.25,1.673]
[1742115454740,2.50617599,608.49,607.25,1.673]
[1742115454939,1.52276143,608.48,607.25,1.673]
[1742115455633,2.50617599,608.49,607.25,1.673]
[1742115455940,1.52196357,608.48,607.25,1.673]
[1742115457139,1.52196357,608.59,607.25,1.673]
[1742115459140,2.50617599,608.49,607.25,1.673]
[1742115459336,1.52196357,608.48,607.25,1.673]
[1742115461241,2.50617599,608.43,607.25,1.673]
[1742115461439,1.52196357,608.42,607.25,1.673]
[1742115464043,2.50617599,608.23,607.25,1.673]
[1742115466750,2.50617599,608.16,607.25,1.673]
[1742115469253,2.50617599,607.97,607.25,1.673]
[1742115471655,2.50617599,607.86,607.25,1.673]
[1742115473656,2.50617599,607.84,607.25,1.673]
[1742115475857,2.50617599,607.84,607.24,0.32935906]
[1742115476059,2.50617599,607.9,607.24,0.32935906]
[1742115476759,2.50617599,607.9,607.25,1.278]
[1742115478559,2.50617599,607.9,607.26,1.311]
[1742115480556,5.01235198,608.36,607.26,1.311]
[1742115480756,1.85108566,608.35,607.26,1.311]
[1742115480954,0.32876352,608.34,607.26,1.311]
[1742115482463,2.83493951,608.34,607.26,1.311]
[1742115482661,1.52232755,608.33,607.26,1.311]
[1742115483261,0.32877432,608.32,607.26,1.311]
[1742115486768,2.50617599,608.27,607.26,1.311]
[1742115486969,0.32880676,608.26,607.26,1.311]
[1742115487368,1.85113431,608.26,607.26,1.311]
[1742115488771,2.50617599,608.24,607.26,1.311]
[1742115488973,0.32882297,608.23,607.26,1.311]
[1742115489174,1.85115052,608.23,607.26,1.311]
[1742115490373,0.32882297,608.23,607.26,1.311]
[1742115490573,2.50617599,608.06,607.26,1.311]
[1742115493179,4.02659961,608.22,607.26,1.311]
[1742115493477,0.32883379,608.21,607.26,1.311]
[1742115493673,1.84925741,608.21,607.26,1.311]
[1742115495679,0.32883379,608.21,607.26,1.311]
[1742115499778,2.50617599,608.13,607.26,1.311]
[1742115499979,0.32888245,608.12,607.26,1.311]
[1742115500174,1.84930607,608.12,607.26,1.311]
[1742115501680,1.84930607,608.12,607.25,1.278]
[1742115502083,2.50617599,607.67,607.25,1.278]
[1742115504082,2.50617599,607.68,607.25,1.278]
[1742115505884,2.50617599,607.73,607.25,1.278]
[1742115508084,0.32888245,608.12,607.25,1.278]
[1742115508085,2.50617599,607.89,607.25,1.278]
[1742115509487,0.32888245,608.12,607.25,1.278]
[1742115511688,0.32888245,608.12,607.26,1.59]
[1742115516794,2.50617599,608.05,607.26,1.59]
[1742115519192,2.50617599,607.91,607.26,1.59]
[1742115521394,2.50617599,607.89,607.26,1.59]
[1742115522302,2.50617599,607.89,607.27,1.655]
[1742115522903,2.50617599,607.91,607.27,1.655]
[1742115525506,0.32888245,608.12,607.27,1.655]
[1742115535318,2.50617599,607.76,607.27,1.655]
[1742115537416,1.52310439,607.96,607.27,1.655]
[1742115537417,2.50617599,607.74,607.27,1.655]
[1742115540317,1.52310439,607.94,607.27,1.655]
[1742115540318,2.50617599,607.88,607.27,1.655]
[1742115541920,2.50617599,607.91,607.27,1.655]
[1742115544633,2.50617599,607.9,607.27,1.655]
[1742115545931,2.50617599,607.9,607.26,0.69186441]
[1742115546131,2.50617599,607.9,607.21,1.672]
[1742115547132,2.50617599,607.96,607.21,1.672]
[1742115547325,0.32897442,607.95,607.21,1.672]
[1742115547529,1.85207881,607.95,607.21,1.672]
[1742115548828,2.50617599,607.77,607.21,1.672]
[1742115552539,2.50617599,607.76,607.21,1.672]
[1742115554242,2.50617599,607.81,607.21,1.672]
[1742115554741,2.50617599,607.81,606.34,1.57163207]
[1742115554941,2.50617599,607.81,606.36,0.32983706]
[1742115555140,2.50617599,607.81,606.37,0.66380297]
[1742115555341,2.50617599,607.81,606.39,0.32982074]
[1742115555541,2.50617599,607.81,606.4,0.66380297]
[1742115555742,0.32897983,607.94,606.42,0.32980442]
[1742115555936,0.32897983,607.94,606.43,0.36105908]
[1742115556139,0.32897983,607.94,606.45,0.32978811]
[1742115556435,0.32897983,607.94,606.46,3.51475592]
[1742115556642,0.32897983,607.94,606.48,0.32977179]
[1742115556842,0.32897983,607.94,606.49,0.36105908]
[1742115557137,0.32897983,607.94,606.51,0.32975548]
[1742115557336,0.32897983,607.94,606.52,0.66375585]
[1742115557535,0.32897983,607.94,606.54,0.32973917]
[1742115557842,0.32897983,607.94,606.55,0.6636966]
[1742115558042,0.32897983,607.94,606.57,0.32972286]
[1742115558243,0.32897983,607.94,606.58,0.36099983]
[1742115558443,0.32897983,607.94,606.59,0.63240784]
[1742115558644,0.32897983,607.94,606.6,0.99340224]
[1742115558840,0.32897983,607.94,606.61,0.66369568]
[1742115559050,0.32897983,607.94,606.62,0.63239154]
[1742115559247,0.32897983,607.94,606.63,0.6323861]
[1742115559447,0.32897983,607.94,606.64,0.32968482]
[1742115559947,2.50617599,607.91,606.65,1.21296032]
[1742115560146,2.50617599,607.91,606.66,0.32967395]
[1742115560844,2.50617599,607.91,606.67,1.21296032]
[1742115561042,2.50617599,607.91,606.68,0.69066168]
[1742115561247,2.50617599,607.91,606.69,0.69065625]
[1742115561450,2.50617599,607.91,606.7,1.90361099]
[1742115561643,2.50617599,607.91,606.71,0.69064524]
[1742115561843,2.50617599,607.91,606.72,0.32964135]
[1742115562049,2.50617599,607.91,606.73,0.36099743]
[1742115562349,2.50617599,607.91,606.74,0.69062791]
[1742115562550,2.50617599,607.91,606.75,0.69062248]
[1742115562750,0.32897983,607.94,606.76,0.36099743]
[1742115562946,0.32897983,607.94,606.76,3.51435724]
[1742115563150,0.32897983,607.94,606.76,3.15335981]
[1742115563749,0.32897983,607.94,606.77,1.21296032]
[1742115564148,0.32897983,607.94,606.78,1.21296032]
[1742115564945,0.32897983,607.94,606.79,1.21296032]
[1742115565746,0.32897983,607.94,606.75,0.32962505]
[1742115565747,0.32897983,607.94,606.8,1.21296032]
[1742115566651,0.32897983,607.94,606.81,1.21296032]
[1742115566952,0.32897983,607.94,606.82,1.21296032]
[1742115567752,0.32897983,607.94,606.83,1.21296032]
[1742115568850,0.32897983,607.94,606.75,0.32962505]
[1742115569557,0.32897983,607.94,606.76,1.21309059]
[1742115570654,0.32897983,607.94,606.77,1.21309059]
[1742115571653,0.32897983,607.94,606.76,1.21309059]
[1742115573255,0.32897983,607.94,606.77,1.53]
[1742115574560,1.5210175,608.16,606.77,1.53]
[1742115574561,2.50617599,608.09,606.77,1.53]
[1742115575555,2.50617599,608.09,606.77,3.003]
[1742115575954,4.02719349,608.09,606.77,3.003]
[1742115576154,1.5210175,608.08,606.77,3.003]
[1742115576355,2.50617599,607.98,606.77,3.003]
[1742115578763,2.50617599,607.85,606.77,3.003]
[1742115581266,2.50617599,607.81,606.77,3.003]
[1742115583559,2.50617599,607.73,606.77,3.003]
[1742115585866,2.50617599,607.91,606.77,3.003]
[1742115586665,4.02719349,607.91,606.77,3.003]
[1742115586861,1.5210175,607.9,606.77,3.003]
[1742115587080,2.50617599,607.91,606.77,3.003]
[1742115587666,2.50617599,607.94,606.77,3.003]
[1742115589870,2.50617599,607.94,606.77,4.649]
[1742115590173,1.5210175,608.05,606.77,4.649]
[1742115590471,1.5210175,608.06,606.77,4.649]
[1742115590862,2.50617599,608.07,606.77,4.649]
[1742115592272,2.50617599,607.9,606.77,4.649]
[1742115594673,2.50617599,607.93,606.77,4.649]
[1742115597268,1.5210175,608.07,606.77,4.649]
[1742115597473,1.5210175,608.2,606.77,4.649]
[1742115597773,2.50617599,608.21,606.77,4.649]
[1742115599370,2.50617599,608.19,606.77,4.649]
[1742115599574,0.32885541,608.17,606.77,4.649]
[1742115601274,2.50617599,608.16,606.77,4.649]
[1742115601469,4.02532784,608.16,606.77,4.649]
[1742115602676,1.51915185,608.16,606.77,4.649]
[1742115602869,0.32885541,608.17,606.77,4.649]
[1742115607882,2.50617599,607.83,606.77,4.649]
[1742115608182,0.32904478,607.82,606.77,4.649]
[1742115609584,1.84715657,607.82,606.77,4.649]
[1742115609779,0.32904478,607.82,606.77,4.649]
[1742115610484,1.84704241,607.82,606.77,4.649]
[1742115610682,0.32904478,607.82,606.77,4.649]
[1742115612585,2.50617599,607.81,606.77,4.649]
[1742115612784,0.32905561,607.8,606.77,4.649]
[1742115614187,1.84711373,607.8,606.77,4.649]
[1742115614789,0.32905561,607.8,606.77,4.649]
[1742115616091,2.50617599,607.71,606.77,4.649]
[1742115618394,0.32905561,607.8,606.77,4.649]
[1742115629499,2.50617599,607.49,606.77,4.649]
[1742115631801,2.50617599,607.5,606.77,4.649]
[1742115634503,1.52075668,607.7,606.77,4.649]
[1742115634504,2.50617599,607.55,606.77,4.649]
[1742115636107,2.50617599,607.7,606.77,4.649]
[1742115636705,2.50617599,607.7,606.78,1.19910568]
[1742115636912,2.50617599,607.7,606.77,4.649]
[1742115637207,2.50617599,607.7,606.29,0.2866793]
[1742115637413,2.50617599,607.7,606.31,0.32986426]
[1742115637608,2.50617599,607.7,606.32,1.86433291]
[1742115637810,2.50617599,607.7,606.34,0.32984794]
[1742115638009,0.32905561,607.8,606.35,0.66515304]
[1742115638210,0.32905561,607.8,606.37,0.32983162]
[1742115638410,0.32905561,607.8,606.38,0.66515304]
[1742115638608,0.32905561,607.8,606.4,0.3298153]
[1742115638807,0.32905561,607.8,606.41,0.36237928]
[1742115639007,0.32905561,607.8,606.43,0.32979898]
[1742115639207,0.32905561,607.8,606.44,0.36237928]
[1742115639412,0.32905561,607.8,606.45,0.69216739]
[1742115639613,0.32905561,607.8,606.46,0.69216195]
[1742115639814,0.32905561,607.8,606.47,0.69215651]
[1742115640009,0.32905561,607.8,606.48,1.89133094]
[1742115640206,0.32905561,607.8,606.49,0.69214564]
[1742115640413,0.32905561,607.8,606.5,0.6921402]
[1742115640616,0.32905561,607.8,606.51,0.69213476]
[1742115640806,0.32905561,607.8,606.52,0.36237928]
[1742115641011,0.32905561,607.8,606.52,3.36455915]
[1742115641314,0.32905561,607.8,606.53,0.36237928]
[1742115641813,0.32905561,607.8,606.54,1.19917987]
[1742115642013,0.32905561,607.8,606.55,0.36237928]
[1742115642511,0.32905561,607.8,606.56,1.19917987]
[1742115642907,0.32905561,607.8,606.53,1.19917987]
[1742115643119,0.32905561,607.8,606.54,0.36249371]
[1742115643316,0.32905561,607.8,606.53,1.19917987]
[1742115643512,0.32905561,607.8,606.55,1.19917987]
[1742115644109,0.32905561,607.8,606.53,1.19917987]
[1742115644914,0.32905561,607.8,606.54,1.19917987]
[1742115645416,0.32905561,607.8,606.53,1.19917987]
[1742115654417,2.50617599,607.67,606.53,1.19917987]
[1742115655814,2.50617599,607.68,606.53,1.19917987]
[1742115656420,2.50617599,607.68,606.52,1.803]
[1742115657519,2.50617599,607.68,606.53,1.19939325]
[1742115657918,2.50617599,607.68,606.52,1.803]
[1742115658618,1.52176263,607.79,606.52,1.803]
[1742115658619,2.50617599,607.7,606.52,1.803]
[1742115658921,0.32911517,607.69,606.52,1.803]
[1742115659420,1.8508778,607.69,606.52,1.803]
[1742115660520,0.32911517,607.69,606.52,1.803]
[1742115665325,0.32911517,607.69,606.53,1.19916698]
[1742115665719,0.32911517,607.69,606.52,3.717]
[1742115667627,0.32911517,607.69,606.53,1.19915358]
[1742115668125,0.32911517,607.69,606.53,2.77615358]
[1742115668524,0.32911517,607.69,606.54,1.19915358]
[1742115669026,0.32911517,607.69,606.55,1.19915358]
[1742115669627,0.32911517,607.69,606.56,1.19915358]
[1742115670033,0.32911517,607.69,606.57,1.19915358]
[1742115670627,0.32911517,607.69,606.53,1.577]
[1742115671335,0.32911517,607.69,606.54,1.19904502]
[1742115671931,0.32911517,607.69,606.55,1.19904502]
[1742115672430,0.32911517,607.69,606.56,1.19904502]
[1742115673235,0.32911517,607.69,606.57,1.19904502]
[1742115677571,0.32911517,607.69,606.58,1.19904502]
[1742115678673,0.32911517,607.69,606.53,1.577]
[1742115678674,0.32911517,607.69,606.59,1.19904502]
[1742115679484,0.32911517,607.69,606.6,1.452]
[1742115681475,2.50617599,607.58,606.6,1.452]
[1742115686249,2.50617599,607.57,606.6,1.452]
[1742115686948,0.32918559,607.56,606.6,1.452]
[1742115687444,1.84933149,607.56,606.6,1.452]
[1742115687749,0.32918559,607.56,606.6,1.452]
[1742115690647,0.28693222,607.55,606.6,1.452]
[1742115690847,0.32920185,607.53,606.6,1.452]
[1742115691047,2.50617599,607.48,606.6,1.452]
[1742115691247,0.32923978,607.46,606.6,1.452]
[1742115691753,0.32923978,607.46,606.61,1.656]
[1742115693450,2.50617599,607.44,606.61,1.656]
[1742115693645,0.32926146,607.42,606.61,1.656]
[1742115695352,2.50617599,607.35,606.61,1.656]
[1742115695557,0.32930483,607.34,606.61,1.656]
[1742115696151,1.84945073,607.34,606.61,1.656]
[1742115696754,0.28703161,607.33,606.61,1.656]
[1742115697056,0.32931568,607.32,606.61,1.656]
[1742115697957,2.50617599,607.31,606.61,1.656]
[1742115698153,0.32932652,607.3,606.61,1.656]